Cogmind - Beta 15 @@@ ROGUE MODE // 2025.05.10 @ 17:21:56 Player: DannyCarnage Result: Destroyed by Y-45 Defender with Heavy Assault Rifle Performance ------------- Evolutions (1) 500 Regions Visited (3) 600 Robots Destroyed (31) 155 Value Destroyed (663) 663 Prototype IDs (0) 0 Alien Tech Used (0) 0 Bonus (0) 0 TOTAL SCORE: 1918 Bonus ------- None Cogmind --------- Core Integrity 0/400 Matter 44/300 Energy 95/100 System Corruption 0% Temperature Warm (121) Movement Core (250) Ox4 Location -9/Storage Parts ------- > --- POWER (1) -------- (None) > --- PROPULSION (2) --- (None) > --- UTILITY (4) ------ Medium Storage Unit Structural Scanner Visual Processing Unit Terrain Scanner > --- WEAPON (2) ------- Particle Gun > --- INVENTORY (10) --- Ion Engine Ion Engine Light Ion Engine Aluminum Leg Datajack Mining Laser Mining Laser Peak State ------------ > --- POWER ------------ Ion Engine > --- PROPULSION ------- Aluminum Leg Aluminum Leg > --- UTILITY ---------- Medium Storage Unit Structural Scanner Visual Processing Unit Terrain Scanner > --- WEAPON ----------- Particle Gun Mining Laser > --- INVENTORY -------- Ion Engine Ion Engine Ion Engine Aluminum Leg Aluminum Leg Grenade Launcher Datajack Mining Laser [Rating: 11] Favorites ----------- Power Ion Engine Engine Ion Engine Propulsion Aluminum Leg Leg Aluminum Leg Utility Visual Processing Unit Device Terrain Scanner Storage Medium Storage Unit Processor Visual Processing Unit Weapon Particle Gun Energy Gun Particle Gun Ballistic Gun Light Assault Rifle Launcher Grenade Launcher Special Weapon Mining Laser Special Melee Weapon Datajack Build | -11 -10 -9 -9 ------- Run | Yrd Mat Mat Sto Slots Evolved 2 | . . 2 . Power . | . . . . Propulsion . | . . . . Utility 2 | . . 2 . Weapon . | . . . . Parts Attached 21 | 6 9 5 1 Power 2 | 1 1 . . Engine 2 | 1 1 . . Core . | . . . . Reactor . | . . . . Propulsion 5 | 2 3 . . Treads . | . . . . Leg 5 | 2 3 . . Wheel . | . . . . Hover . | . . . . Flight . | . . . . Utility 5 | 1 2 2 . Device 2 | . . 2 . Storage 2 | 1 1 . . Processor 1 | . 1 . . Hackware . | . . . . Protection . | . . . . Artifact . | . . . . Weapon 9 | 2 3 3 1 Energy Gun 4 | 2 1 . 1 Energy Cannon . | . . . . Ballistic Gun 1 | . . 1 . Ballistic Cannon . | . . . . Launcher 1 | . . 1 . Special Weapon 2 | . 1 1 . Impact Weapon . | . . . . Slashing Weapon . | . . . . Piercing Weapon . | . . . . Special Melee Weapon 1 | . 1 . . Unidentified Prototypes . | . . . . Parts Lost 9 | . 1 3 5 Power 2 | . . 1 1 Propulsion 3 | . . 1 2 Utility . | . . . . Weapon 4 | . 1 1 2 Highest Loss Streak 5 | . 1 2 5 To Critical Strikes . | . . . . Average Backups 7 | 2 7 8 7 Power 2 | . 2 3 3 Propulsion 1 | . 1 2 1 Utility . | . . . . Weapon 1 | . 1 2 2 Tool/Special . | . . . . Unused Backups 8 | . 6 . 2 Power 4 | . 2 . 2 Propulsion 2 | . 2 . . Utility 1 | . 1 . . Weapon 1 | . 1 . . Tool/Special . | . . . . Average Slot Usage (%) 89 | . 91 83 87 Engine 10 | . 10 9 6 Leg 25 | . 28 20 18 Device 5 | . . 17 22 Storage 13 | . 14 11 11 Processor 10 | . 10 11 11 Energy Gun 14 | . 18 7 1 Special Weapon 5 | . 6 4 . Special Melee Weapon 1 | . 1 . . Peak Build Rating 11 | 6 9 11 10 Average Rating 8 | 3 7 9 9 On Entrance 5 | . 6 9 8 Naked Turns . | . . . . Heaviest Build 21 | 13 20 21 21 Greatest Support 20 | 20 20 20 20 Greatest Overweight (x) 2 | . . 1 2 Average Overweight (x) . | . . . 1 Largest Inventory Capacity 10 | 8 10 10 10 Average Capacity 9 | 6 9 10 10 Most Carried 10 | 5 10 10 9 Average Carried 7 | 2 7 8 7 Final Capacity 10 | 8 10 10 10 Final Carried 10 | 4 10 9 7 Class Distribution -------------------- 66% | Mutant 33% | Scavenger-Mutant Dominant Class ---------------- Mutant | -10/Materials Scavenger-Mutant | -9/Materials Scavenger-Mutant | -9/Storage Resources | -11 -10 -9 -9 ----------- Run | Yrd Mat Mat Sto Matter Collected 430 | 190 175 65 . Remotely . | . . . . Salvage Created 752 | . 394 251 107 Parts 57 | . 25 23 9 Haulers Intercepted 1 | . 1 . . Recyclers Shooed 2 | . . . 2 Parts Field Recycled . | . . . . Retrieved Matter . | . . . . Parts Self-Destructed . | . . . . Prevented . | . . . . Kills | -11 -10 -9 -9 ------- Run | Yrd Mat Mat Sto Combat Hostiles Destroyed 22 | . 9 9 4 Guns 12 | . 9 3 . AOE 10 | . . 6 4 Classes Destroyed 9 | . 5 3 1 Worker 1 | . 1 . . Builder 2 | . . 2 . Hauler 1 | . 1 . . Recycler 3 | . . 2 1 Operator 1 | . . . 1 Watcher 1 | . 1 . . Swarmer 9 | . 3 6 . Grunt 11 | . 6 1 4 Sentry 2 | . . 2 . Best Kill Streak 6 | . 4 6 6 Combat Bots Only 6 | . 3 6 4 Max Kills in Single Turn 3 | . 2 3 2 Gunslinging . | . . . . Exploded 1 | . . 1 1 Melee . | . . . . Uniques/NPCs Destroyed . | . . . . Combat | -11 -10 -9 -9 -------- Run | Yrd Mat Mat Sto Hostile Shots Fired 162 | . 63 59 40 Missed 54 | . 16 20 18 Hits 108 | . 47 39 22 Projectile 108 | . 47 39 22 Critical Strikes 5 | . 4 . 1 Damage Taken 1457 | . 508 605 344 Core 576 | . 176 309 91 Absorbed by Shields . | . . . . Regen/Repaired (Parts) 48 | . 48 . . Core Remaining (%) 64 | 100 29 . . Volleys Fired 103 | . 60 26 17 Largest 2 | . 2 2 2 Hottest 105 | . 105 100 85 Shots Fired 124 | . 75 28 21 Gun 78 | . 54 11 13 Cannon . | . . . . Launcher 24 | . . 16 8 Special 22 | . 21 1 . Kinetic 11 | . . 2 9 Thermal 73 | . 59 10 4 Explosive 24 | . . 16 8 Electromagnetic 16 | . 16 . . Robot Hit Streak 12 | . 10 11 12 Robot Miss Streak 3 | . 3 3 1 Penetration Max . | . . . . Secondary Targets 2 | . 2 . . Max Gunslinging Chain 1 | . 1 . . Shots Hit Robots 68 | . 35 21 12 Core Hits 50 | . 17 21 12 Critical Kills . | . . . . Critical Parts Destroyed . | . . . . Critical Strikes . | . . . . Melee Attacks 1 | . 1 . . Impact . | . . . . Slashing . | . . . . Piercing . | . . . . Sneak Attacks 1 | . 1 . . Combat Hostiles . | . . . . Follow-up Attacks . | . . . . Damage Inflicted 1719 | . 508 711 500 Guns 691 | . 508 89 94 Cannons . | . . . . Explosions 1028 | . . 622 406 Melee . | . . . . Ramming . | . . . . Kinetic 68 | . . 19 49 Thermal 468 | . 353 70 45 Explosive 1028 | . . 622 406 Electromagnetic 155 | . 155 . . Impact . | . . . . Slashing . | . . . . Piercing . | . . . . Highest Corruption . | . . . . Average Corruption . | . . . . Corruption Purged . | . . . . Corruption Blocked . | . . . . Overload Shots . | . . . . Overflow Damage 38 | . . 38 . Projectiles . | . . . . Explosions 38 | . . 38 . Melee . | . . . . Knockbacks . | . . . . Impact . | . . . . Kinetic . | . . . . Secondary . | . . . . Self-Inflicted Damage 81 | . . 48 33 Shots 3 | . . 2 1 Rammed . | . . . . Targets Rammed . | . . . . Kicked . | . . . . Crushed . | . . . . Highest Temperature 366 | . 366 90 112 Average Temperature 80 | . 86 40 67 Received Heat Transfer 417 | . 222 63 132 Siege Activations . | . . . . Martial Activations . | . . . . Shielding Activations . | . . . . Robots Disrupted 1 | . 1 . . Combat Hostiles 1 | . 1 . . Robots Corrupted . | . . . . Combat Hostiles . | . . . . Parts Fried . | . . . . Impact Corruptions . | . . . . Robots Melted . | . . . . Combat Hostiles . | . . . . Parts Melted 2 | . 2 . . Heat Transferred 1124 | . 828 185 111 Parts Sabotaged . | . . . . Parts Stolen . | . . . . Parts Stripped . | . . . . Power Chain Reactions . | . . . . Alert | -11 -10 -9 -9 ------- Run | Yrd Mat Mat Sto Maximum Alert Level 1 | . . 1 1 Low Security (%) 95 | 100 100 88 78 Level 1 4 | . . 11 21 Level 2 . | . . . . Level 3 . | . . . . Level 4 . | . . . . Level 5 . | . . . . High Security . | . . . . Max Security . | . . . . Peak Influence 218 | . 87 214 218 Initial 85 | . . 18 85 Average 36 | . 22 49 166 Influence Increases 731 | . 273 315 143 Destroy 0b10 Robot/C 440 | . 180 180 80 Destroy 0b10 Robot/NC 45 | . 15 20 10 Destroy Leader 94 | . 44 40 10 Successful Hack 3 | . 3 . . Disable Machine 30 | . 15 . 15 Destroy Structure 104 | . 16 60 28 Lose Combat Pursuer 15 | . . 15 . Influence Decreases 583 | . 229 155 199 Entered New Map 145 | . . 26 119 Time Decay 356 | . 227 99 30 Lost Part 82 | . 2 30 50 Squads Dispatched 4 | . 2 . 2 Investigation 1 | . 1 . . Extermination . | . . . . Reinforcement 2 | . 1 . 1 Assault . | . . . . Garrison 1 | . . . 1 Intercept . | . . . . Searches Triggered . | . . . . Construction Impeded . | . . . . Haulers Reinforced . | . . . . Active Scanning Responses . | . . . . Cargo Convoy Interrupts . | . . . . Stealth | -11 -10 -9 -9 --------- Run | Yrd Mat Mat Sto Distress Signals 1 | . 1 . . Communications Jammed . | . . . . Distress Signals . | . . . . Times Spotted 38 | . 15 12 11 Peak Tracking Total 6 | . 4 4 6 Tactical Retreats 1 | . . 1 . Traps | -11 -10 -9 -9 ------- Run | Yrd Mat Mat Sto Traps Triggered 1 | . 1 . . Indirectly . | . . . . Trap Hack Attempts . | . . . . Triggered . | . . . . Disarmed . | . . . . Reprogrammed . | . . . . Reused . | . . . . Traps Extracted . | . . . . Installed . | . . . . Triggered . | . . . . Machines | -11 -10 -9 -9 ---------- Run | Yrd Mat Mat Sto Machines Disabled 2 | . 1 . 1 Max in Single Turn 1 | . 1 . 1 Machines Repaired . | . . . . Machines Dismantled . | . . . . Machines Sabotaged . | . . . . Overloaded Fab Kills . | . . . . Hacking | -11 -10 -9 -9 --------- Run | Yrd Mat Mat Sto Machines Accessed 4 | . 2 1 1 Terminals 2 | . 1 . 1 Fabricators . | . . . . Repair Stations 1 | . 1 . . Recycling Units 1 | . . 1 . Scanalyzers . | . . . . Garrison Access . | . . . . Total Hacks 6 | . 4 1 1 Successful 3 | . 2 . 1 Failed 3 | . 2 1 . Catastrophic 1 | . 1 . . Database Lockouts . | . . . . Manual 2 | . 1 1 . Terminals 2 | . 1 . 1 Fabricators . | . . . . Repair Stations 3 | . 3 . . Recycling Units 1 | . . 1 . Scanalyzers . | . . . . Garrison Access . | . . . . Terminal Hacks 1 | . . . 1 Record 1 | . . . 1 Fabricator Hacks . | . . . . Repair Station Hacks 2 | . 2 . . Scan Component 1 | . 1 . . Repair 1 | . 1 . . Recycling Unit Hacks . | . . . . Scanalyzer . | . . . . Garrison Access Hacks . | . . . . Unauthorized Hacks . | . . . . Terminals . | . . . . Fabricators . | . . . . Repair Stations . | . . . . Recycling Units . | . . . . Scanalyzers . | . . . . Garrison Access . | . . . . Data Cores Recovered . | . . . . Used . | . . . . Hacking Detections 2 | . 1 . 1 Full Trace Events . | . . . . Feedback Events . | . . . . Feedback Blocked . | . . . . Robot Schematics Acquired . | . . . . Robots Built . | . . . . Authchips . | . . . . Time . | . . . . Total Robot Build Rating . | . . . . Part Schematics Acquired . | . . . . Parts Built . | . . . . Authchips . | . . . . Time . | . . . . Total Part Build Rating . | . . . . Parts Repaired 1 | . 1 . . Time 26 | . 26 . . Parts Recycled . | . . . . Recycled Matter . | . . . . Retrieved Matter . | . . . . Retrieved Components . | . . . . Parts Scanalyzed . | . . . . Part Schematics Acquired . | . . . . Parts Damaged . | . . . . Bothacking | -11 -10 -9 -9 ------------ Run | Yrd Mat Mat Sto Used RIF Installer . | . . . . Robots Hacked 1 | . 1 . . Non-combat 1 | . 1 . . Combat . | . . . . Robot Hacks Applied 1 | . 1 . . no_distress 1 | . 1 . . Relay Couplers Released . | . . . . Fabnet Peak Effective % . | . . . . Robots Rewired . | . . . . Allies Hacked . | . . . . Hacks Repelled . | . . . . Allies | -11 -10 -9 -9 -------- Run | Yrd Mat Mat Sto Total Allies . | . . . . Largest Group . | . . . . Highest-Rated Group . | . . . . Highest-Rated Ally . | . . . . Total Orders . | . . . . Ally Attacks . | . . . . Total Damage . | . . . . Kills . | . . . . Allies Corrupted . | . . . . Allies Melted . | . . . . Intel | -11 -10 -9 -9 ------- Run | Yrd Mat Mat Sto Active Infowar (turns) 1036 | . 655 302 79 Optics 1036 | . 655 302 79 Terrain 381 | . . 302 79 Structural 254 | . . 175 79 Robot Analysis Total . | . . . . Derelict Logs Recovered . | . . . . Drone Launches . | . . . . Drone Recoveries . | . . . . Exploration | -11 -10 -9 -9 ------------- Run | Yrd Mat Mat Sto Turns Passed 1295 | 67 847 302 79 Spaces Moved 562 | 47 411 84 20 Core 6 | 6 . . . Treads . | . . . . Legs 556 | 41 411 84 20 Wheels . | . . . . Hover . | . . . . Flight . | . . . . Fastest Speed 50 | 50 120 120 120 Average Speed 125 | 111 120 144 193 Slowest Speed 260 | 120 120 190 260 Overloaded Moves . | . . . . Propulsion Burnouts . | . . . . Robots Hopped . | . . . . Potential Cave-ins 2 | . 2 . . Cave-ins Triggered . | . . . . Exploration Rate (%) 20 | 5 52 11 12 Regions Visited 3 Branch Regions 1 Pre-discovered Areas . | . . . . Known Exits Taken . | . . . . Unknown Exits Taken 3 | 1 1 1 . Scrap Searched . | . . . . Spaces Dug 29 | . 20 9 . Terrain Destroyed 116 | . 20 67 29 Melee . | . . . . Projectile 21 | . 20 1 . AOE 95 | . . 66 29 Terrain Rammed . | . . . . Walls Destroyed . | . . . . Machines Disabled . | . . . . Actions | -11 -10 -9 -9 --------- Run | Yrd Mat Mat Sto Total 987 | 62 648 236 41 Wait 255 | . 139 116 . Move 559 | 46 410 83 20 Hop . | . . . . Pick Up 29 | 10 15 3 1 Fast Attach . | . . . . Attach 18 | 6 3 6 3 Detach 3 | . 1 2 . Swap 10 | . 10 . . Drop 9 | . 9 . . Fire 103 | . 60 26 17 Melee 1 | . 1 . . Ram . | . . . . Kick . | . . . . Crush . | . . . . Escape Stasis . | . . . . Rewire . | . . . . Trap . | . . . . Miscellaneous . | . . . . Route ------- -11/Scrapyard -10/Materials -9/Materials -9/Storage History --------- Turn | Location | Event 5 | -11/Scrapyard | Discovered new exit (range 16) 68 | -11/Scrapyard | Entered Materials 302 | -10/Materials | Build established: Mutant 637 | -10/Materials | Repaired Ion Engine 825 | -10/Materials | Discovered new exit (range 12) 829 | -10/Materials | Core integrity fell below 50% 915 | -10/Materials | Entered another Materials area 915 | -9/Materials | Evolved 2 slots: Utility x2 1131 | -9/Materials | Build established: Scavenger-Mutant 1146 | -9/Materials | Discovered new exit (range 10) 1170 | -9/Materials | Core integrity fell below 50% 1217 | -9/Materials | Entered Storage 1243 | -9/Storage | Core integrity fell below 20% 1244 | -9/Storage | Garrison activated, responded to threat 1296 | -9/Storage | Destroyed by Y-45 Defender with Heavy Assault Rifle Last Messages --------------- 01235_ G-34 Mercenary destroyed. 01237_ The unstable cave ceiling collapses. 01238_ G-34 Mercenary destroyed. 01239_ The unstable cave ceiling collapses. 01240_ G-34 Mercenary destroyed. 01240_ R-06 Scavenger destroyed. 01244_ Repair Station disabled. 01244_ Backup Laser I tumbles out of repair station. 01244_ R-06 Scavenger calls for garrison support. 01244_ ALERT: Activating Garrison Access S001. 01247_ G-34 Mercenary destroyed. 01249_ The unstable cave ceiling collapses. 01264_ Aluminum Leg destroyed. 01278_ Grenade Launcher destroyed. 01283_ Acquired Particle Gun. 01285_ Transfer Shaft disabled. 01287_ Critical hit (Burn: +37). 01290_ Aluminum Leg destroyed. 01291_ Ion Engine destroyed. 01295_ Lgt. Assault Rifle destroyed. Map ----- +----------------------------------------------------+ | | | | | | | | | | | ????????????#????????????????? | | ???????#?????????????????????? | | ?????????????????????????????? | | ?????????#???????????????????? | | ?????????????????????????????? | | ???????#######????## ##??????? | | ???????#############"#####???? | | ?#?######"""#######T ####### | | ????#####"T" # # = ###### | | ????## %* % | | ?#??## * | | ????## [* [ | | ????####"T" #+##### | | ????######### # [ ] # | | ??########### " " " # | | ??########### # "R == "G"?? | | ??## # ##"""== " ??? | | ??## ""# #####= ???? | | ??## Y"# ##### ???????? | | ??##![ g""# ##???????????? | | ??##!@ YYg/ ##?#?????????? | | ??##[[ "" # a##???????????? | | ??## " " # ##???????????? | | ??## g"""Y # ##???????????? | | ??## # ##???????????? | | ??#### ###### ## ??????????? | | ??########### ##???????????? | | ????#####??## ##???????????? | | ???????????## ##???????????? | | ???????????## ???????????? | | ??????????#?? ????????????? | | ????????????# ???????????? | | ???#?#??????######???????????? | | ????????????######???????????? | | ?????????????????????????????? | | ?????????????????????????????? | | ?????????????????????????????? | | ?????????????????????????????? | | ?????????????????????????????? | | ?????????????????????????????? | | ?????????????????????????????? | | ?????????????????????????????? | | ?????????????????????????????? | | ?????????????????????????????? | | ?????????????????????????????? | +----------------------------------------------------+ Best States ------------- Heat Dissipation 28 Energy Generation 10 Energy Capacity 250 Matter Stores 300 Matter Capacity 300 Sight Range 18 Terrain Scan Range 14 Terrain Scan Density 10 Evasion (%) 55 Item Schematics ----------------- None Robot Schematics ------------------ None Fabricated ------------ Nothing Repaired ---------- Ion Engine | 20% | -10/Materials Alien Tech Used ----------------- None Achievements -------------- None Challenges ------------ None Game ------ Seed ProjectionHoverShearcannon Manual? 0 Play Time 00:19:26 Cumulative 10.0 hours Start 2025.05.10 @ 17:04:21 End 2025.05.10 @ 17:21:56 Sessions 1 Manual Loads 0 Difficulty Rogue Special Mode None Game No. 11 Rogue 11 Adventurer 0 Explorer 0 Win Type - Total 0 Types 0/0/0/0/0/0/0/0/0/0 Lore% 9 Gallery% 15 Achievement% 12 Wizard Run 0 Options --------- Layout 0 ASCII 0 Keyboard 0 Movement Mouse Keybinds 0 Fullscreen 1 Font 18/SmallcapsGlow Map View 76x50 Zoom Use 0% Tactical HUD 1 Map Filters NONE Filters NONE Steam 1 RUN: 6d2d9d0b-287a-4301-b0ad-f92b4a93b1da